[Event "Early-Titled-Tuesday-Blitz-December-26-2023"]
[Site "Chess.com"]
[Date "2023.12.26"]
[Round "1"]
[White "maurovargas01"]
[Black "malakismayil"]
[Result "0-1"]
[WhiteElo "1879"]
[BlackElo "2552"]
[TimeControl "180+1"]
[EndTime "8:07:29 PST"]
[Termination "malakismayil won on time"]

1. e4 {[%clk 0:03:00.2]} 1... e5 {[%clk 0:02:59]} 2. Nf3 {[%clk 0:02:58.5]} 2...
Nc6 {[%clk 0:02:59.6]} 3. Bc4 {[%clk 0:02:58.7]} 3... Bc5 {[%clk 0:02:59.2]} 4.
O-O {[%clk 0:02:56.7]} 4... Nf6 {[%clk 0:02:59.8]} 5. d4 {[%clk 0:02:56.5]} 5...
Bxd4 {[%clk 0:02:56.1]} 6. Nxd4 {[%clk 0:02:55.9]} 6... Nxd4 {[%clk 0:02:57]} 7.
Bg5 {[%clk 0:02:54]} 7... d6 {[%clk 0:02:51.5]} 8. f4 {[%clk 0:02:51.3]} 8...
Qe7 {[%clk 0:02:41.3]} 9. Nc3 {[%clk 0:02:48.9]} 9... Be6 {[%clk 0:02:36.5]} 10.
Bd3 {[%clk 0:02:33.3]} 10... h6 {[%clk 0:02:27.5]} 11. Bh4 {[%clk 0:02:23.8]}
11... exf4 {[%clk 0:02:25]} 12. Nd5 {[%clk 0:02:07.8]} 12... Bxd5 {[%clk
0:02:23.5]} 13. exd5 {[%clk 0:02:07.5]} 13... Qd7 {[%clk 0:01:26.6]} 14. Re1+
{[%clk 0:02:01.6]} 14... Kd8 {[%clk 0:01:02.2]} 15. c3 {[%clk 0:01:56.1]} 15...
Nf5 {[%clk 0:01:00.8]} 16. Bf2 {[%clk 0:01:45.8]} 16... Nxd5 {[%clk 0:00:47.8]}
17. Qb3 {[%clk 0:01:33]} 17... Nb6 {[%clk 0:00:38.9]} 18. Qc2 {[%clk 0:01:25.5]}
18... Ne7 {[%clk 0:00:36.6]} 19. Bd4 {[%clk 0:01:09.5]} 19... f6 {[%clk
0:00:33.7]} 20. Rad1 {[%clk 0:00:58]} 20... Re8 {[%clk 0:00:27.2]} 21. b3 {[%clk
0:00:56.1]} 21... Kc8 {[%clk 0:00:22.4]} 22. Re2 {[%clk 0:00:47.8]} 22... c5
{[%clk 0:00:21.5]} 23. Bf2 {[%clk 0:00:25]} 23... Kc7 {[%clk 0:00:19]} 24. a4
{[%clk 0:00:24.2]} 24... Nc6 {[%clk 0:00:15.2]} 25. Rde1 {[%clk 0:00:18.3]}
25... Rxe2 {[%clk 0:00:14.4]} 26. Rxe2 {[%clk 0:00:17.8]} 26... Re8 {[%clk
0:00:14.3]} 27. Rd2 {[%clk 0:00:17.5]} 27... Nd5 {[%clk 0:00:11.1]} 28. Bf5
{[%clk 0:00:15.6]} 28... Qf7 {[%clk 0:00:11]} 29. c4 {[%clk 0:00:12.4]} 29...
Ne3 {[%clk 0:00:09.4]} 30. Bxe3 {[%clk 0:00:10.4]} 30... Rxe3 {[%clk 0:00:10.3]}
31. Qd1 {[%clk 0:00:07.7]} 31... Nd4 {[%clk 0:00:10.1]} 32. Rxd4 {[%clk
0:00:03.4]} 32... cxd4 {[%clk 0:00:11]} 33. Qxd4 {[%clk 0:00:03.6]} 33... Qe7
{[%clk 0:00:11.3]} 34. h3 {[%clk 0:00:02.4]} 34... Re1+ {[%clk 0:00:10.9]} 35.
Kh2 {[%clk 0:00:02.1]} 35... Qe3 {[%clk 0:00:11.8]} 0-1

[Event "Early-Titled-Tuesday-Blitz-December-26-2023"]
[Site "Chess.com"]
[Date "2023.12.26"]
[Round "1"]
[White "isaak2009"]
[Black "elchacal664"]
[Result "1-0"]
[WhiteElo "2621"]
[BlackElo "2283"]
[TimeControl "180+1"]
[EndTime "8:07:30 PST"]
[Termination "isaak2009 won by checkmate"]

1. e4 {[%clk 0:03:00.9]} 1... c5 {[%clk 0:02:47.9]} 2. Nf3 {[%clk 0:03:00.6]}
2... e6 {[%clk 0:02:45.9]} 3. d3 {[%clk 0:03:00.7]} 3... d5 {[%clk 0:02:41.7]}
4. Nbd2 {[%clk 0:03:00.1]} 4... Nc6 {[%clk 0:02:39.9]} 5. g3 {[%clk 0:03:00.4]}
5... b5 {[%clk 0:02:38.6]} 6. Bg2 {[%clk 0:02:59.8]} 6... Rb8 {[%clk 0:02:36.5]}
7. O-O {[%clk 0:02:59.2]} 7... Nf6 {[%clk 0:02:30.3]} 8. Re1 {[%clk 0:02:53.1]}
8... Be7 {[%clk 0:02:28]} 9. Qe2 {[%clk 0:02:49.8]} 9... O-O {[%clk 0:02:18.2]}
10. Nf1 {[%clk 0:02:48.7]} 10... dxe4 {[%clk 0:02:09]} 11. dxe4 {[%clk
0:02:49.6]} 11... Nd4 {[%clk 0:02:08.3]} 12. Nxd4 {[%clk 0:02:47.1]} 12... cxd4
{[%clk 0:02:04.9]} 13. Bf4 {[%clk 0:02:46.7]} 13... Rb6 {[%clk 0:01:44.3]} 14.
Rad1 {[%clk 0:02:47.1]} 14... Bc5 {[%clk 0:01:28.5]} 15. c3 {[%clk 0:02:40.3]}
15... d3 {[%clk 0:01:19.5]} 16. Rxd3 {[%clk 0:02:39.3]} 16... Qe8 {[%clk
0:01:19.5]} 17. Be3 {[%clk 0:02:29.7]} 17... Bxe3 {[%clk 0:01:16.3]} 18. Qxe3
{[%clk 0:02:30.6]} 18... b4 {[%clk 0:01:15.3]} 19. c4 {[%clk 0:02:28]} 19... Bb7
{[%clk 0:01:03.6]} 20. b3 {[%clk 0:02:26.6]} 20... Qc6 {[%clk 0:01:01.5]} 21. f3
{[%clk 0:02:20.8]} 21... Nd7 {[%clk 0:00:59.5]} 22. Red1 {[%clk 0:02:20.8]}
22... Ne5 {[%clk 0:00:52.9]} 23. Rd8 {[%clk 0:02:18.2]} 23... Qc7 {[%clk
0:00:48.3]} 24. Rxf8+ {[%clk 0:02:17.7]} 24... Kxf8 {[%clk 0:00:48.4]} 25. Qd4
{[%clk 0:02:14.7]} 25... Ke7 {[%clk 0:00:46.5]} 26. Ne3 {[%clk 0:02:12.1]} 26...
Rd6 {[%clk 0:00:43.9]} 27. Qxa7 {[%clk 0:02:02.3]} 27... Rxd1+ {[%clk
0:00:42.2]} 28. Nxd1 {[%clk 0:02:03.2]} 28... Qd7 {[%clk 0:00:35]} 29. Qc5+
{[%clk 0:01:59.4]} 29... Ke8 {[%clk 0:00:33.3]} 30. Nf2 {[%clk 0:01:47]} 30...
Nd3 {[%clk 0:00:30.5]} 31. Nxd3 {[%clk 0:01:36.1]} 31... Qxd3 {[%clk 0:00:31.4]}
32. Bf1 {[%clk 0:01:12.1]} 32... Qxf3 {[%clk 0:00:27.9]} 33. Qb5+ {[%clk
0:01:10.2]} 33... Kd8 {[%clk 0:00:22.3]} 34. Qxb7 {[%clk 0:01:03.6]} 34... Qe3+
{[%clk 0:00:21.8]} 35. Kg2 {[%clk 0:01:03.9]} 35... Qd2+ {[%clk 0:00:22.1]} 36.
Kf3 {[%clk 0:01:02.9]} 36... Qc3+ {[%clk 0:00:17.3]} 37. Ke2 {[%clk 0:01:01.7]}
37... Qc2+ {[%clk 0:00:17.2]} 38. Ke3 {[%clk 0:01:01.5]} 38... Qc3+ {[%clk
0:00:17.6]} 39. Bd3 {[%clk 0:01:01.7]} 39... Qe1+ {[%clk 0:00:16.8]} 40. Be2
{[%clk 0:00:54.2]} 40... Qc3+ {[%clk 0:00:16.3]} 41. Kf2 {[%clk 0:00:54.8]}
41... Qd4+ {[%clk 0:00:13.9]} 42. Kf1 {[%clk 0:00:55.2]} 42... Qa1+ {[%clk
0:00:13.5]} 43. Kg2 {[%clk 0:00:55.9]} 43... Qxa2 {[%clk 0:00:13.1]} 44. Qb6+
{[%clk 0:00:49.2]} 44... Ke8 {[%clk 0:00:13.1]} 45. Qb5+ {[%clk 0:00:49.2]}
45... Kd8 {[%clk 0:00:13.1]} 46. Qb6+ {[%clk 0:00:49.7]} 46... Ke8 {[%clk
0:00:13.2]} 47. Qe3 {[%clk 0:00:50.6]} 47... Qb2 {[%clk 0:00:12.1]} 48. Qd3
{[%clk 0:00:49.9]} 48... e5 {[%clk 0:00:11]} 49. c5 {[%clk 0:00:48.3]} 49... Qc3
{[%clk 0:00:10.3]} 50. Qxc3 {[%clk 0:00:48.3]} 50... bxc3 {[%clk 0:00:11.2]} 51.
Bd3 {[%clk 0:00:49.1]} 51... Kd7 {[%clk 0:00:09.7]} 52. b4 {[%clk 0:00:48.7]}
52... Kc6 {[%clk 0:00:10.2]} 53. Kf3 {[%clk 0:00:48.7]} 53... g6 {[%clk
0:00:07.6]} 54. Bc2 {[%clk 0:00:48.8]} 54... f5 {[%clk 0:00:08]} 55. exf5 {[%clk
0:00:49.7]} 55... gxf5 {[%clk 0:00:08.4]} 56. Bxf5 {[%clk 0:00:50.4]} 56... e4+
{[%clk 0:00:09]} 57. Bxe4+ {[%clk 0:00:50.8]} 57... Kb5 {[%clk 0:00:08.4]} 58.
Bd3+ {[%clk 0:00:51.5]} 58... Kxb4 {[%clk 0:00:09.2]} 59. c6 {[%clk 0:00:52]}
59... c2 {[%clk 0:00:08.3]} 60. Bxc2 {[%clk 0:00:51.9]} 60... Kc3 {[%clk
0:00:08.9]} 61. Be4 {[%clk 0:00:52.8]} 61... Kd2 {[%clk 0:00:09.5]} 62. c7
{[%clk 0:00:53.2]} 62... Ke1 {[%clk 0:00:10.4]} 63. c8=Q {[%clk 0:00:54.1]}
63... Kf1 {[%clk 0:00:11.3]} 64. Qc1# {[%clk 0:00:54.4]} 1-0

[Event "Early-Titled-Tuesday-Blitz-December-26-2023"]
[Site "Chess.com"]
[Date "2023.12.26"]
[Round "1"]
[White "Hoshka"]
[Black "Russian_berezka"]
[Result "0-1"]
[WhiteElo "2022"]
[BlackElo "2558"]
[TimeControl "180+1"]
[EndTime "8:07:41 PST"]
[Termination "Russian_berezka won on time"]

1. d4 {[%clk 0:02:59.2]} 1... Nf6 {[%clk 0:02:47.1]} 2. c4 {[%clk 0:02:58.7]}
2... e6 {[%clk 0:02:38.9]} 3. g3 {[%clk 0:02:58.3]} 3... d5 {[%clk 0:02:31.1]}
4. Bg2 {[%clk 0:02:57.4]} 4... Be7 {[%clk 0:02:30.1]} 5. Nf3 {[%clk 0:02:57.2]}
5... O-O {[%clk 0:02:30.1]} 6. O-O {[%clk 0:02:55.9]} 6... b6 {[%clk 0:02:30.7]}
7. cxd5 {[%clk 0:02:54]} 7... exd5 {[%clk 0:02:27.1]} 8. Nc3 {[%clk 0:02:52.9]}
8... Bb7 {[%clk 0:02:27.3]} 9. Qb3 {[%clk 0:02:45.7]} 9... Nbd7 {[%clk
0:02:26.3]} 10. Ne5 {[%clk 0:02:41.7]} 10... c6 {[%clk 0:02:15.1]} 11. Bf4
{[%clk 0:02:39.2]} 11... Re8 {[%clk 0:02:13.4]} 12. Rac1 {[%clk 0:02:34.6]}
12... Nxe5 {[%clk 0:02:12.3]} 13. Bxe5 {[%clk 0:02:32.3]} 13... Nd7 {[%clk
0:02:11.1]} 14. Bf4 {[%clk 0:02:28.8]} 14... Nf6 {[%clk 0:02:09.6]} 15. Rfe1
{[%clk 0:02:13]} 15... Bd6 {[%clk 0:02:06.2]} 16. Bg5 {[%clk 0:02:08.4]} 16...
h6 {[%clk 0:01:59.6]} 17. Bxf6 {[%clk 0:02:04.4]} 17... Qxf6 {[%clk 0:02:00.5]}
18. e4 {[%clk 0:02:01.9]} 18... dxe4 {[%clk 0:01:58.5]} 19. Nxe4 {[%clk
0:02:01.5]} 19... Qg6 {[%clk 0:01:54.5]} 20. Nxd6 {[%clk 0:01:57.7]} 20... Qxd6
{[%clk 0:01:55.3]} 21. Red1 {[%clk 0:01:45.2]} 21... Red8 {[%clk 0:01:53.2]} 22.
Rc3 {[%clk 0:01:35]} 22... Rac8 {[%clk 0:01:35]} 23. h4 {[%clk 0:01:24.9]} 23...
Rc7 {[%clk 0:01:31.4]} 24. Rdc1 {[%clk 0:01:17.5]} 24... Qxd4 {[%clk 0:01:26.8]}
25. Bxc6 {[%clk 0:01:09.5]} 25... Bxc6 {[%clk 0:01:17.1]} 26. Rxc6 {[%clk
0:01:08.7]} 26... Rxc6 {[%clk 0:01:18]} 27. Rxc6 {[%clk 0:01:08.6]} 27... Qd1+
{[%clk 0:01:18.5]} 28. Qxd1 {[%clk 0:01:08.1]} 28... Rxd1+ {[%clk 0:01:19.4]}
29. Kg2 {[%clk 0:01:09]} 29... Rd2 {[%clk 0:01:20.3]} 30. Rc8+ {[%clk
0:01:05.1]} 30... Kh7 {[%clk 0:01:19.4]} 31. Rc7 {[%clk 0:01:04.9]} 31... a5
{[%clk 0:01:19.8]} 32. Rxf7 {[%clk 0:00:55.7]} 32... Rxb2 {[%clk 0:01:20.2]} 33.
a4 {[%clk 0:00:53.3]} 33... Rb4 {[%clk 0:01:18.7]} 34. Rb7 {[%clk 0:00:52.9]}
34... Kg6 {[%clk 0:01:19.1]} 35. Kf3 {[%clk 0:00:52.2]} 35... Kf6 {[%clk
0:01:19.5]} 36. g4 {[%clk 0:00:44.7]} 36... g6 {[%clk 0:01:19.1]} 37. Kg3 {[%clk
0:00:40.4]} 37... Ke5 {[%clk 0:01:14.6]} 38. Rh7 {[%clk 0:00:25.3]} 38... Rxa4
{[%clk 0:00:57.2]} 39. Rxh6 {[%clk 0:00:24.9]} 39... b5 {[%clk 0:00:55.1]} 40.
Rxg6 {[%clk 0:00:24.5]} 40... b4 {[%clk 0:00:55.6]} 41. Rb6 {[%clk 0:00:23.2]}
41... Ra1 {[%clk 0:00:55.4]} 42. h5 {[%clk 0:00:19.3]} 42... Kd5 {[%clk
0:00:52.7]} 43. h6 {[%clk 0:00:14]} 43... Kc5 {[%clk 0:00:52.4]} 44. Rb8 {[%clk
0:00:11.6]} 44... Rh1 {[%clk 0:00:51.6]} 45. g5 {[%clk 0:00:10.8]} 45... a4
{[%clk 0:00:52.1]} 46. Kg2 {[%clk 0:00:04.2]} 46... Rh5 {[%clk 0:00:43.6]} 47.
f4 {[%clk 0:00:03.6]} 47... a3 {[%clk 0:00:43.4]} 0-1

[Event "Early-Titled-Tuesday-Blitz-December-26-2023"]
[Site "Chess.com"]
[Date "2023.12.26"]
[Round "1"]
[White "FoxOnTheRun97"]
[Black "Dewarfd"]
[Result "1-0"]
[WhiteElo "2577"]
[BlackElo "2101"]
[TimeControl "180+1"]
[EndTime "8:07:42 PST"]
[Termination "FoxOnTheRun97 won on time"]

1. d4 {[%clk 0:03:00.9]} 1... Nf6 {[%clk 0:02:58.8]} 2. Bg5 {[%clk 0:03:01.3]}
2... d5 {[%clk 0:02:53.7]} 3. Nd2 {[%clk 0:03:01.2]} 3... c5 {[%clk 0:02:53.6]}
4. e3 {[%clk 0:03:01.6]} 4... e6 {[%clk 0:02:51.7]} 5. c3 {[%clk 0:02:57.9]}
5... cxd4 {[%clk 0:02:51.4]} 6. exd4 {[%clk 0:02:57.6]} 6... Be7 {[%clk
0:02:51.1]} 7. Bd3 {[%clk 0:02:57.7]} 7... Nc6 {[%clk 0:02:38.9]} 8. Ngf3 {[%clk
0:02:58]} 8... Qc7 {[%clk 0:02:34.6]} 9. O-O {[%clk 0:02:56.7]} 9... h6 {[%clk
0:02:33.4]} 10. Bh4 {[%clk 0:02:56.2]} 10... O-O {[%clk 0:02:24.5]} 11. Re1
{[%clk 0:02:54.6]} 11... Ng4 {[%clk 0:02:12.4]} 12. Bxe7 {[%clk 0:02:31.7]}
12... Qxe7 {[%clk 0:02:11.9]} 13. h3 {[%clk 0:02:27.6]} 13... Nf6 {[%clk
0:02:07.8]} 14. Ne5 {[%clk 0:02:28.3]} 14... Nxe5 {[%clk 0:02:07]} 15. dxe5
{[%clk 0:02:28.7]} 15... Nd7 {[%clk 0:02:06.3]} 16. Nf3 {[%clk 0:02:28.1]} 16...
Nc5 {[%clk 0:02:04.4]} 17. Bc2 {[%clk 0:02:26.6]} 17... a5 {[%clk 0:02:01.3]}
18. Qd4 {[%clk 0:02:20.7]} 18... g6 {[%clk 0:01:52.3]} 19. Rad1 {[%clk
0:02:16.8]} 19... b6 {[%clk 0:01:48.7]} 20. Qg4 {[%clk 0:02:10.9]} 20... Kg7
{[%clk 0:01:43.1]} 21. Nd4 {[%clk 0:02:07.9]} 21... Qg5 {[%clk 0:01:39.2]} 22.
Qe2 {[%clk 0:02:00.8]} 22... Ba6 {[%clk 0:01:31.1]} 23. Qf3 {[%clk 0:01:59.8]}
23... Bb7 {[%clk 0:01:26.5]} 24. Kh2 {[%clk 0:01:35.8]} 24... Ne4 {[%clk
0:01:21.7]} 25. Bxe4 {[%clk 0:01:35.8]} 25... dxe4 {[%clk 0:01:21.6]} 26. Qg3
{[%clk 0:01:36.6]} 26... Rfd8 {[%clk 0:01:07.5]} 27. Nb5 {[%clk 0:01:30.4]}
27... Qxg3+ {[%clk 0:01:02.9]} 28. Kxg3 {[%clk 0:01:29.8]} 28... Rd5 {[%clk
0:00:51.5]} 29. Nd6 {[%clk 0:01:23.2]} 29... Bc6 {[%clk 0:00:49.5]} 30. f4
{[%clk 0:01:06.6]} 30... exf3 {[%clk 0:00:48.6]} 31. gxf3 {[%clk 0:01:07]} 31...
g5 {[%clk 0:00:42.7]} 32. c4 {[%clk 0:01:06.1]} 32... Rxd1 {[%clk 0:00:38.3]}
33. Rxd1 {[%clk 0:01:07]} 33... Ra7 {[%clk 0:00:32.2]} 34. b3 {[%clk 0:01:03.8]}
34... Rd7 {[%clk 0:00:31.1]} 35. f4 {[%clk 0:01:01.7]} 35... gxf4+ {[%clk
0:00:31.1]} 36. Kxf4 {[%clk 0:01:02.6]} 36... Kf8 {[%clk 0:00:24.2]} 37. Rc1
{[%clk 0:00:53.8]} 37... f6 {[%clk 0:00:23.5]} 38. c5 {[%clk 0:00:52.1]} 38...
fxe5+ {[%clk 0:00:15.8]} 39. Kxe5 {[%clk 0:00:52.4]} 39... bxc5 {[%clk 0:00:14]}
40. Rxc5 {[%clk 0:00:50.3]} 40... Bd5 {[%clk 0:00:12.5]} 41. Rxa5 {[%clk
0:00:47.6]} 41... Rc7 {[%clk 0:00:11.5]} 42. Rb5 {[%clk 0:00:35.9]} 42... Rc3
{[%clk 0:00:10.5]} 43. h4 {[%clk 0:00:32.6]} 43... Re3+ {[%clk 0:00:09.8]} 44.
Kf6 {[%clk 0:00:26.8]} 44... Rf3+ {[%clk 0:00:08.9]} 45. Kg6 {[%clk 0:00:27.3]}
45... Rh3 {[%clk 0:00:07.3]} 46. Nf5 {[%clk 0:00:21.2]} 46... Ke8 {[%clk
0:00:01.3]} 47. Nxh6 {[%clk 0:00:17.7]} 1-0

[Event "Early-Titled-Tuesday-Blitz-December-26-2023"]
[Site "Chess.com"]
[Date "2023.12.26"]
[Round "1"]
[White "Aslanov_Umid"]
[Black "ChessBliss09"]
[Result "0-1"]
[WhiteElo "2551"]
[BlackElo "2097"]
[TimeControl "180+1"]
[EndTime "8:07:44 PST"]
[Termination "ChessBliss09 won by checkmate"]

1. e4 {[%clk 0:03:00.9]} 1... c6 {[%clk 0:02:57]} 2. d4 {[%clk 0:03:00.6]} 2...
d5 {[%clk 0:02:57.3]} 3. Nd2 {[%clk 0:03:01.3]} 3... dxe4 {[%clk 0:02:57.4]} 4.
Nxe4 {[%clk 0:03:02.2]} 4... Nf6 {[%clk 0:02:57.3]} 5. Nxf6+ {[%clk 0:03:02.5]}
5... exf6 {[%clk 0:02:58.2]} 6. c3 {[%clk 0:03:03.3]} 6... Bd6 {[%clk
0:02:58.4]} 7. Bd3 {[%clk 0:03:00.6]} 7... O-O {[%clk 0:02:58.3]} 8. Qc2 {[%clk
0:03:01.4]} 8... Re8+ {[%clk 0:02:57.3]} 9. Ne2 {[%clk 0:03:02]} 9... h5 {[%clk
0:02:56.4]} 10. O-O {[%clk 0:03:02.4]} 10... Na6 {[%clk 0:02:53.9]} 11. Bf4
{[%clk 0:03:01.3]} 11... Nc7 {[%clk 0:02:48.1]} 12. Bxd6 {[%clk 0:03:00.6]}
12... Qxd6 {[%clk 0:02:49]} 13. c4 {[%clk 0:03:00.6]} 13... Be6 {[%clk
0:02:39.7]} 14. Rad1 {[%clk 0:02:56.2]} 14... Rad8 {[%clk 0:02:38.8]} 15. h3
{[%clk 0:02:41.4]} 15... b5 {[%clk 0:02:21.7]} 16. b3 {[%clk 0:02:39.7]} 16...
a5 {[%clk 0:02:19.7]} 17. Nc3 {[%clk 0:02:38.6]} 17... bxc4 {[%clk 0:02:01.3]}
18. bxc4 {[%clk 0:02:38.4]} 18... Qf4 {[%clk 0:01:58.9]} 19. Be4 {[%clk
0:02:29.3]} 19... Bxc4 {[%clk 0:01:53.1]} 20. Rfe1 {[%clk 0:02:27.2]} 20... Bd5
{[%clk 0:01:50.2]} 21. Bxd5 {[%clk 0:02:17.6]} 21... Nxd5 {[%clk 0:01:45.9]} 22.
Nxd5 {[%clk 0:02:17.5]} 22... cxd5 {[%clk 0:01:43.4]} 23. Rxe8+ {[%clk
0:02:17.2]} 23... Rxe8 {[%clk 0:01:44.3]} 24. Qc6 {[%clk 0:02:04.8]} 24... Qe4
{[%clk 0:01:30.8]} 25. Kh2 {[%clk 0:01:46.3]} 25... Qe2 {[%clk 0:01:24.8]} 26.
Rd2 {[%clk 0:01:45.8]} 26... Qe4 {[%clk 0:01:19.7]} 27. Qc3 {[%clk 0:01:28.9]}
27... h4 {[%clk 0:01:06.3]} 28. Qc7 {[%clk 0:00:55.8]} 28... Qe1 {[%clk
0:00:59.2]} 29. Rb2 {[%clk 0:00:51.5]} 29... Qa1 {[%clk 0:00:35.1]} 30. Rb7
{[%clk 0:00:46.7]} 30... Rf8 {[%clk 0:00:30.6]} 31. Qc5 {[%clk 0:00:42.1]} 31...
Qxa2 {[%clk 0:00:27.4]} 32. Ra7 {[%clk 0:00:41.4]} 32... Qxf2 {[%clk 0:00:26.9]}
33. Qxd5 {[%clk 0:00:38.8]} 33... Qg3+ {[%clk 0:00:23.6]} 34. Kg1 {[%clk
0:00:38.9]} 34... Qe1+ {[%clk 0:00:22.9]} 35. Kh2 {[%clk 0:00:39.6]} 35... a4
{[%clk 0:00:15.6]} 36. Qf3 {[%clk 0:00:30.9]} 36... Qb4 {[%clk 0:00:08.4]} 37.
Qd5 {[%clk 0:00:29.5]} 37... Qb8+ {[%clk 0:00:06.7]} 38. Kg1 {[%clk 0:00:26.4]}
38... Qxa7 {[%clk 0:00:06.7]} 39. Kf2 {[%clk 0:00:25.7]} 39... a3 {[%clk
0:00:06.5]} 40. Kf3 {[%clk 0:00:26.6]} 40... a2 {[%clk 0:00:06.5]} 41. Kg4
{[%clk 0:00:27]} 41... a1=Q {[%clk 0:00:06.6]} 42. Kh5 {[%clk 0:00:27]} 42...
Q1xd4 {[%clk 0:00:06.5]} 43. Qf5 {[%clk 0:00:25.9]} 43... Qe5 {[%clk 0:00:05.6]}
44. g4 {[%clk 0:00:25.9]} 44... Qxf5+ {[%clk 0:00:05.7]} 45. gxf5 {[%clk
0:00:26.8]} 45... g6+ {[%clk 0:00:04.8]} 46. Kh6 {[%clk 0:00:27.1]} 46... Rc8
{[%clk 0:00:03.9]} 47. fxg6 {[%clk 0:00:27]} 47... fxg6 {[%clk 0:00:04.8]} 48.
Kxg6 {[%clk 0:00:27.2]} 48... Qf7+ {[%clk 0:00:05.4]} 49. Kh6 {[%clk 0:00:27.1]}
49... Qb3 {[%clk 0:00:04.1]} 50. Kh5 {[%clk 0:00:28]} 50... Qxh3 {[%clk
0:00:03.9]} 51. Kg6 {[%clk 0:00:28.2]} 51... Kf8 {[%clk 0:00:04.1]} 52. Kxf6
{[%clk 0:00:28.8]} 52... Qg3 {[%clk 0:00:04.2]} 53. Kf5 {[%clk 0:00:29.1]} 53...
Rc5+ {[%clk 0:00:04.5]} 54. Ke6 {[%clk 0:00:30]} 54... Qg6+ {[%clk 0:00:04.2]}
55. Kd7 {[%clk 0:00:30.7]} 55... Qf7+ {[%clk 0:00:03.6]} 56. Kd6 {[%clk
0:00:30.7]} 56... Qc7+ {[%clk 0:00:03.8]} 57. Ke6 {[%clk 0:00:31]} 57... Qc6#
{[%clk 0:00:03.9]} 0-1

[Event "Early-Titled-Tuesday-Blitz-December-26-2023"]
[Site "Chess.com"]
[Date "2023.12.26"]
[Round "1"]
[White "ChessSG1"]
[Black "Agibileg"]
[Result "1-0"]
[WhiteElo "2446"]
[BlackElo "2695"]
[TimeControl "180+1"]
[EndTime "8:07:48 PST"]
[Termination "ChessSG1 won on time"]

1. d4 {[%clk 0:02:47.9]} 1... Nf6 {[%clk 0:02:58.8]} 2. c4 {[%clk 0:02:45.5]}
2... e6 {[%clk 0:02:58.9]} 3. g3 {[%clk 0:02:43.4]} 3... c5 {[%clk 0:02:57.7]}
4. d5 {[%clk 0:02:42.8]} 4... exd5 {[%clk 0:02:53.8]} 5. cxd5 {[%clk 0:02:43.7]}
5... d6 {[%clk 0:02:54.7]} 6. Nc3 {[%clk 0:02:43.9]} 6... g6 {[%clk 0:02:55]} 7.
Bg2 {[%clk 0:02:44.3]} 7... Bg7 {[%clk 0:02:55.5]} 8. Nf3 {[%clk 0:02:44.9]}
8... O-O {[%clk 0:02:56.1]} 9. O-O {[%clk 0:02:45.2]} 9... Re8 {[%clk
0:02:56.4]} 10. Nd2 {[%clk 0:02:33]} 10... a6 {[%clk 0:02:50.4]} 11. a4 {[%clk
0:02:32.4]} 11... Nbd7 {[%clk 0:02:50.6]} 12. a5 {[%clk 0:02:20.6]} 12... Rb8
{[%clk 0:02:49.1]} 13. Nc4 {[%clk 0:02:18.4]} 13... Ne5 {[%clk 0:02:48.2]} 14.
Nxe5 {[%clk 0:01:59.6]} 14... Rxe5 {[%clk 0:02:49.1]} 15. Bf4 {[%clk 0:01:59.4]}
15... Re8 {[%clk 0:02:49.6]} 16. e4 {[%clk 0:01:57.7]} 16... Bg4 {[%clk
0:02:45.6]} 17. Qc2 {[%clk 0:01:53.1]} 17... Nh5 {[%clk 0:02:45.8]} 18. Be3
{[%clk 0:01:49.6]} 18... b5 {[%clk 0:02:42.6]} 19. axb6 {[%clk 0:01:47]} 19...
Qxb6 {[%clk 0:02:37.4]} 20. Rfb1 {[%clk 0:01:11.8]} 20... a5 {[%clk 0:02:19.3]}
21. Ra2 {[%clk 0:01:11.5]} 21... Bd7 {[%clk 0:01:46.8]} 22. Rba1 {[%clk
0:01:10.5]} 22... Bd4 {[%clk 0:01:36.9]} 23. Bc1 {[%clk 0:00:49]} 23... Nf6
{[%clk 0:01:31.6]} 24. h3 {[%clk 0:00:40.5]} 24... a4 {[%clk 0:01:27.2]} 25.
Nxa4 {[%clk 0:00:36.4]} 25... Bxa4 {[%clk 0:01:27.1]} 26. Rxa4 {[%clk
0:00:35.5]} 26... Bxb2 {[%clk 0:01:20.7]} 27. Rb1 {[%clk 0:00:35.7]} 27... Nxd5
{[%clk 0:00:35.1]} 28. Rxb2 {[%clk 0:00:35.5]} 28... Nb4 {[%clk 0:00:32.9]} 29.
Qc3 {[%clk 0:00:28.9]} 29... d5 {[%clk 0:00:26]} 30. exd5 {[%clk 0:00:14.4]}
30... Qb5 {[%clk 0:00:13.8]} 31. Bh6 {[%clk 0:00:11.8]} 31... f6 {[%clk
0:00:10.9]} 32. Qxf6 {[%clk 0:00:11.5]} 32... Rb7 {[%clk 0:00:09.5]} 33. Ra1
{[%clk 0:00:09.6]} 33... Rf7 {[%clk 0:00:09.1]} 34. Qc3 {[%clk 0:00:06.2]} 34...
Qb6 {[%clk 0:00:04.2]} 35. d6 {[%clk 0:00:06]} 35... Qxd6 {[%clk 0:00:04.1]} 36.
Qc4 {[%clk 0:00:03.7]} 36... Rd8 {[%clk 0:00:02.9]} 37. Kh2 {[%clk 0:00:03.6]}
37... Qd7 {[%clk 0:00:01.5]} 38. Ra5 {[%clk 0:00:02.1]} 38... Nd3 {[%clk
0:00:01.3]} 39. Rb6 {[%clk 0:00:01.7]} 1-0